bitfinex-derivatives/quotes_BTCF0:USTF0_20240917
["timestamp","ask_amount","ask_price","bid_price","bid_amount"]
[1726587434998,0.09539146,61001.0,61000.0,0.36325899]
[1726587435295,0.09039146,61001.0,61000.0,0.36325899]
[1726587435795,0.17920666,61001.0,61000.0,1.53700499]
[1726587435986,0.004,61001.0,61000.0,0.96325899]
[1726587436187,0.16288578,61006.0,61005.0,0.08194]
[1726587436497,0.36325881,61016.0,61005.0,0.08194]
[1726587436498,0.16288578,61008.0,61005.0,0.6408]
[1726587436689,0.16288578,61013.0,61005.0,0.6408]
[1726587436891,0.36325881,61016.0,61005.0,0.6408]
[1726587437394,0.36325881,61016.0,61006.0,0.081938]
[1726587437581,0.36325881,61016.0,61007.0,0.081937]
[1726587437582,0.00245881,61016.0,61007.0,0.081937]
[1726587437785,0.00245881,61016.0,61015.0,0.722726]
[1726587437992,0.3608,61027.0,61015.0,0.6408]
[1726587438181,0.3608,61024.0,61015.0,0.6408]
[1726587438589,0.3608,61024.0,61016.0,0.081924]
[1726587439490,0.3608,61024.0,61015.0,0.64164]
[1726587439689,0.41956278,61024.0,61015.0,0.6408]
[1726587439890,0.05876278,61023.0,61015.0,0.6408]
[1726587440091,0.3608,61024.0,61015.0,0.722726]
[1726587440488,0.44317084,61020.0,61015.0,0.3608]
[1726587440696,0.361921,61020.0,61015.0,0.37671672]
[1726587441087,0.05028552,61019.0,61015.0,0.37671672]
[1726587441295,0.05028552,61018.0,61015.0,0.37671672]
[1726587441490,0.05028552,61017.0,61015.0,0.37671672]
[1726587441692,0.081921,61020.0,61015.0,0.37671672]
[1726587441693,0.05028552,61016.0,61015.0,0.37671672]
[1726587443000,0.05028552,61023.0,61022.0,0.081917]
[1726587443200,0.05027674,61023.0,61021.0,0.6408]
[1726587443500,0.21341087,61022.0,61021.0,0.6408]
[1726587443695,0.081897,61037.0,61021.0,0.6408]
[1726587443696,0.14639257,61024.0,61023.0,0.081915]
[1726587443899,0.05875702,61032.0,61023.0,0.9608]
[1726587443900,0.17942757,61032.0,61023.0,0.9608]
[1726587444095,0.17942757,61032.0,61031.0,0.3608]
[1726587444294,0.0401041,61032.0,61031.0,0.3608]
[1726587444693,0.04010366,61032.0,61031.0,0.3608]
[1726587445398,0.04010366,61032.0,61031.0,0.3769817]
[1726587446397,0.4659,61044.0,61031.0,0.3769817]
[1726587446710,0.04010444,61043.0,61039.0,0.6408]
[1726587446903,0.04010444,61042.0,61039.0,0.6408]
[1726587447194,0.00245721,61048.0,61039.0,0.6408]
[1726587447195,0.04010444,61041.0,61039.0,0.6408]
[1726587447403,0.00245721,61048.0,61039.0,0.6408]
[1726587447596,0.04010122,61047.0,61039.0,0.6408]
[1726587447802,0.40090122,61046.0,61039.0,0.6408]
[1726587448101,0.17935713,61042.0,61039.0,0.3608]
[1726587448310,0.00104001,61051.0,61041.0,0.6408]
[1726587448602,0.00104001,61051.0,61041.0,0.3608]
[1726587448603,0.00116001,61051.0,61041.0,0.3608]
[1726587448903,0.28,61060.0,61041.0,0.3608]
[1726587449091,0.081867,61059.0,61045.0,0.28]
[1726587449293,0.28,61049.0,61041.0,0.3608]
[1726587449599,0.05025742,61048.0,61046.0,0.3608]
[1726587450096,0.081883,61047.0,61046.0,0.3608]
[1726587450297,0.4855,61047.0,61046.0,0.3608]
[1726587451004,0.567383,61047.0,61046.0,0.3608]
[1726587451305,0.081886,61045.0,61044.0,0.01607729]
[1726587451499,0.081888,61044.0,61037.0,0.00245679]
[1726587451802,0.081889,61043.0,61037.0,0.00245679]
[1726587451992,0.4855,61047.0,61037.0,0.01853087]
[1726587452192,0.081886,61045.0,61037.0,0.00245679]
[1726587452398,0.081886,61045.0,61040.0,0.3608]
[1726587452605,0.081887,61044.0,61040.0,0.3608]
[1726587453616,0.4855,61047.0,61040.0,0.3608]
[1726587454105,0.4855,61047.0,61046.0,0.3608]
[1726587454601,0.4855,61047.0,61044.0,0.3608]
[1726587454602,0.4855,61047.0,61038.0,0.081894]
[1726587454902,0.00245731,61050.0,61041.0,0.28]
[1726587455807,0.16274662,61047.0,61041.0,0.28]
[1726587456104,0.05026124,61046.0,61041.0,0.28]
[1726587456402,0.05026124,61046.0,61037.0,0.00245679]
[1726587456403,0.081893,61040.0,61037.0,0.00245679]
[1726587456603,0.0400989,61039.0,61037.0,0.00245679]
[1726587456899,0.0400989,61038.0,61037.0,0.00245679]
[1726587457104,0.081885,61046.0,61037.0,0.00245679]
[1726587457407,0.09036123,61045.0,61042.0,0.3608]
[1726587457595,0.081879,61051.0,61042.0,0.3608]
[1726587457596,0.0400989,61044.0,61042.0,0.3608]
[1726587457800,0.0400989,61043.0,61042.0,0.3608]
[1726587459001,0.17224969,61043.0,61042.0,0.3618]
[1726587460208,0.17224969,61043.0,61042.0,0.37776746]
[1726587460502,0.09036169,61043.0,61042.0,0.37776746]
[1726587460715,0.081888,61043.0,61042.0,0.37776746]
[1726587460906,0.09036169,61043.0,61042.0,0.37776746]
[1726587461097,0.17224969,61043.0,61042.0,0.37776746]
[1726587461602,0.17224969,61043.0,61042.0,0.01696746]
[1726587461803,0.33485856,61043.0,61042.0,0.01696746]
[1726587462011,0.17224969,61043.0,61042.0,0.01696746]
[1726587462496,0.17224987,61043.0,61042.0,0.01696746]
[1726587462696,0.45224987,61043.0,61042.0,0.01696746]
[1726587462899,1.46184187,61043.0,61038.0,0.00245723]
[1726587463098,0.081907,61029.0,61028.0,0.3608]
[1726587463296,0.45226887,61029.0,61028.0,0.3608]
[1726587463508,0.09036187,61029.0,61028.0,0.3608]
[1726587463804,0.05026297,61029.0,61028.0,0.3608]
[1726587464112,0.081905,61031.0,61028.0,0.3608]
[1726587464113,0.09036187,61030.0,61028.0,0.3608]
[1726587464314,0.09036187,61029.0,61028.0,0.3608]
[1726587464697,0.09036187,61030.0,61029.0,0.081907]
[1726587464904,0.17913279,61030.0,61028.0,0.3608]
[1726587465100,0.25321706,61029.0,61028.0,0.442709]
[1726587465305,0.09037882,61029.0,61028.0,0.442709]
[1726587465507,0.16283824,61029.0,61028.0,0.442709]
[1726587465702,0.09037882,61029.0,61028.0,0.3608]
[1726587465907,0.45228418,61029.0,61028.0,0.3608]
[1726587466108,0.45228418,61029.0,61026.0,0.01570765]
[1726587466302,0.45228418,61029.0,61022.0,0.36325811]
[1726587466303,0.09037718,61028.0,61022.0,0.36325811]
[1726587466608,0.20308783,61028.0,61027.0,0.44271]
[1726587466797,0.04010705,61028.0,61027.0,0.44271]
[1726587467002,0.04010705,61028.0,61027.0,0.3608]
[1726587468310,0.04010705,61028.0,61027.0,0.3628]
[1726587468698,0.04010705,61028.0,61027.0,0.002]
[1726587468907,0.2533581,61030.0,61027.0,0.002]
[1726587469108,0.081909,61028.0,61027.0,0.002]
[1726587469311,0.17228621,61028.0,61027.0,0.002]
[1726587469514,0.45228621,61028.0,61027.0,0.002]
[1726587470914,0.37037721,61028.0,61022.0,0.01860692]
[1726587471101,0.081914,61025.0,61022.0,0.01860692]
[1726587471302,0.081915,61023.0,61022.0,0.01860692]
[1726587471615,0.81309221,61023.0,61022.0,0.01614881]
[1726587471806,0.81309221,61023.0,61018.0,0.00245823]
[1726587471807,0.50991751,61023.0,61021.0,0.28]
[1726587472006,0.00245755,61037.0,61021.0,0.804636]
[1726587472007,0.05628454,61022.0,61021.0,0.804636]
[1726587472200,0.0024575,61043.0,61022.0,0.081916]
[1726587472201,0.21062989,61038.0,61022.0,0.081916]
[1726587472405,0.0024575,61043.0,61035.0,0.3608]
[1726587472799,0.0843475,61043.0,61035.0,0.3608]
[1726587473121,0.0024575,61043.0,61035.0,0.3608]
[1726587473303,0.0843465,61043.0,61035.0,0.3608]
[1726587473502,0.24759948,61043.0,61035.0,0.3608]
[1726587473805,0.16325298,61038.0,61035.0,0.3608]
[1726587474011,0.16325298,61036.0,61035.0,0.3608]
[1726587474217,0.16325298,61036.0,61035.0,0.442699]
[1726587474407,0.001,61038.0,61036.0,0.081897]
[1726587474606,0.001,61038.0,61035.0,0.37666336]
[1726587475106,0.006,61038.0,61035.0,0.37766336]
[1726587475912,0.16332688,61036.0,61035.0,1.46818336]
[1726587476116,0.16332688,61037.0,61036.0,0.081898]
[1726587476409,0.28,61053.0,61036.0,0.49152]
[1726587476617,0.28,61053.0,61050.0,0.3608]
[1726587477209,0.08187,61057.0,61050.0,0.3608]
[1726587477416,0.05025576,61056.0,61050.0,0.3608]
[1726587477616,0.05025576,61055.0,61050.0,0.3608]
[1726587477912,0.05872368,61058.0,61048.0,0.3608]
[1726587477913,0.05025576,61054.0,61048.0,0.3608]
[1726587478109,0.0587196,61058.0,61053.0,0.3608]
[1726587478307,0.05025206,61057.0,61053.0,0.3608]
[1726587478509,0.05025206,61056.0,61053.0,0.3608]
[1726587478711,0.05025206,61055.0,61053.0,0.3608]
[1726587479012,0.05925206,61054.0,61053.0,0.3608]
[1726587479212,0.05925206,61054.0,61048.0,0.3618]
[1726587479213,0.05925206,61054.0,61048.0,0.001]
[1726587479417,0.081879,61050.0,61048.0,0.001]
[1726587479615,0.05025546,61049.0,61048.0,0.001]
[1726587480119,0.13213428,61049.0,61048.0,0.001]
[1726587480304,0.05025428,61049.0,61048.0,0.001]
[1726587480717,0.081882,61048.0,61047.0,0.01635753]
[1726587480908,0.081882,61048.0,61046.0,0.00245702]
[1726587480909,0.13213628,61048.0,61046.0,0.00245702]
[1726587481111,0.05025428,61047.0,61046.0,0.00245702]
[1726587481507,0.17933787,61047.0,61046.0,0.00245702]
[1726587481704,0.05025428,61047.0,61046.0,0.01844395]
[1726587481910,0.05025428,61047.0,61044.0,0.3608]
[1726587481911,0.17934185,61047.0,61044.0,0.3608]
[1726587482112,0.05025428,61046.0,61044.0,0.3608]
[1726587482412,0.009,61049.0,61045.0,0.7216]
[1726587482715,0.17934185,61046.0,61045.0,0.803486]
[1726587482920,0.05024997,61046.0,61045.0,1.083486]
[1726587483112,0.05025176,61046.0,61045.0,1.0016]
[1726587483918,0.05025176,61046.0,61045.0,0.803486]
[1726587484115,0.05025176,61046.0,61045.0,0.3608]
[1726587484317,0.007,61047.0,61045.0,0.7216]
[1726587484620,0.05025527,61046.0,61045.0,0.7216]
[1726587484805,0.05025527,61046.0,61043.0,0.01829297]
[1726587484806,0.05025403,61046.0,61043.0,0.01829297]
[1726587485007,0.081887,61044.0,61043.0,0.00245694]
[1726587485309,0.081887,61044.0,61043.0,0.3608]
[1726587485310,0.05025403,61044.0,61043.0,0.3608]
[1726587485704,0.10898633,61045.0,61043.0,0.3608]
[1726587485905,0.10898633,61045.0,61032.0,0.3608]
[1726587485906,0.05025403,61044.0,61032.0,0.3608]
[1726587486107,0.16303332,61036.0,61032.0,0.3608]
[1726587486309,0.21331358,61035.0,61034.0,0.3608]
[1726587486510,0.05025403,61035.0,61032.0,0.37721524]
[1726587486711,0.17933666,61039.0,61032.0,0.37721524]
[1726587486712,0.21331358,61034.0,61032.0,0.37721524]
[1726587486915,0.05025403,61033.0,61032.0,0.37721524]
[1726587487121,0.081902,61033.0,61032.0,0.37721524]
[1726587487319,0.1321702,61033.0,61032.0,0.37721524]
[1726587487618,0.49156,61032.0,61017.0,0.081922]
[1726587487916,0.00245777,61041.0,61017.0,0.081922]
[1726587487917,0.21062989,61039.0,61031.0,1.0016]
[1726587488118,0.16300974,61064.0,61039.0,0.081893]
[1726587488427,0.16287776,61070.0,61062.0,0.6408]
[1726587488721,0.00245624,61082.0,61070.0,0.081852]
[1726587488917,0.00245624,61082.0,61074.0,0.3608]
[1726587488918,0.38648832,61078.0,61074.0,0.3608]
[1726587489420,0.00245624,61082.0,61076.0,0.28]
[1726587489628,0.38894456,61082.0,61076.0,0.28]
[1726587489919,0.38648832,61081.0,61076.0,0.28]
[1726587490319,0.36184001,61084.0,61076.0,0.28]
[1726587490320,0.3608,61084.0,61076.0,0.28]
[1726587490517,0.38648832,61082.0,61076.0,0.28]
[1726587491020,0.001,61078.0,61076.0,0.28]
[1726587491708,0.3608,61084.0,61076.0,0.281]
[1726587491913,0.3608,61079.0,61076.0,0.281]
[1726587492119,0.38648832,61077.0,61076.0,0.001]
[1726587492420,0.38648832,61077.0,61070.0,0.01822319]
[1726587492616,0.38648832,61071.0,61070.0,0.01822319]
[1726587493020,0.3608,61074.0,61070.0,0.01822319]
[1726587493214,0.36325641,61075.0,61070.0,0.01822319]
[1726587493413,0.74974473,61075.0,61070.0,0.01822319]
[1726587493609,0.38648832,61071.0,61070.0,0.01822319]
[1726587494614,0.3608,61075.0,61070.0,0.01822319]
[1726587494823,0.38648832,61073.0,61070.0,0.01822319]
[1726587495014,0.38648832,61073.0,61070.0,0.01922319]
[1726587495626,0.3608,61075.0,61070.0,0.01922319]
[1726587495921,0.38648832,61074.0,61070.0,0.01922319]
[1726587496127,0.38648832,61071.0,61070.0,0.01922319]
[1726587497523,0.43776951,61071.0,61070.0,0.01922319]
[1726587497930,0.38648832,61071.0,61070.0,0.29922319]
[1726587498114,0.001,61073.0,61070.0,0.29822319]
[1726587498319,0.00245637,61075.0,61070.0,0.29922319]
[1726587498513,0.00245637,61075.0,61070.0,0.01922319]
[1726587499118,0.00245637,61075.0,61070.0,0.10107519]
[1726587499429,0.3608,61077.0,61070.0,0.29922319]
[1726587499728,0.3608,61084.0,61072.0,0.3608]
[1726587499927,0.38648832,61079.0,61072.0,0.3608]
[1726587500427,0.001,61073.0,61072.0,0.08185]
[1726587500618,0.001,61073.0,61072.0,0.44265]
[1726587501121,0.001,61079.0,61072.0,0.44365]
[1726587501325,0.001,61079.0,61072.0,0.001]
[1726587501519,0.38648832,61078.0,61073.0,0.3608]
[1726587502424,0.38752833,61078.0,61073.0,0.3608]
[1726587502633,0.38648832,61074.0,61073.0,0.3608]
[1726587504420,0.38648832,61074.0,61072.0,0.001]
[1726587504421,0.3608,61077.0,61072.0,0.281]
[1726587504621,0.3608,61084.0,61074.0,0.3608]
[1726587504622,0.38648832,61078.0,61074.0,0.3608]
[1726587504821,0.38648832,61078.0,61077.0,0.081842]
[1726587505023,0.38748832,61078.0,61077.0,0.081842]
[1726587505739,0.38748832,61078.0,61074.0,0.442647]
[1726587505929,0.38748832,61078.0,61075.0,0.081845]
[1726587506923,0.38748832,61078.0,61074.0,0.3618]
[1726587507119,0.38748832,61078.0,61074.0,0.001]
[1726587507431,0.38648832,61076.0,61074.0,0.001]
[1726587507726,0.38648832,61076.0,61070.0,0.01822319]
[1726587507727,0.38648832,61076.0,61073.0,0.081848]
[1726587507918,0.001,61078.0,61070.0,0.01822319]
[1726587508125,0.001,61078.0,61074.0,0.081847]
[1726587508319,0.001,61078.0,61070.0,0.01822319]
[1726587508320,0.3608,61084.0,61075.0,0.081845]
[1726587508521,0.001,61078.0,61077.0,0.081843]
[1726587509124,0.00245641,61086.0,61085.0,0.081832]
[1726587509327,0.00245544,61094.0,61084.0,0.3608]
[1726587509530,0.00245544,61094.0,61092.0,0.442623]
[1726587509840,0.17880938,61102.0,61096.0,0.081816]
[1726587510023,0.05021571,61101.0,61096.0,0.081816]
[1726587510329,0.38648832,61097.0,61096.0,0.081816]
[1726587511220,0.3608,61103.0,61096.0,0.081816]
[1726587511426,0.3608,61103.0,61096.0,0.082816]
[1726587511427,0.38648832,61099.0,61096.0,0.082816]
[1726587511632,0.74728832,61103.0,61096.0,0.001]
[1726587511847,0.3608,61103.0,61102.0,0.081809]
[1726587512140,0.3608,61109.0,61105.0,0.081805]
[1726587512324,0.38648832,61108.0,61107.0,0.081802]
[1726587512524,0.38648832,61108.0,61103.0,0.00245465]
[1726587512938,0.38648832,61108.0,61105.0,0.081805]
[1726587513134,0.38648832,61108.0,61106.0,0.081804]
[1726587513630,0.38648832,61107.0,61103.0,0.00245465]
[1726587514039,0.38648832,61107.0,61103.0,0.01815941]
[1726587514238,0.38648832,61107.0,61103.0,0.00245465]
[1726587514533,0.38648832,61107.0,61105.0,0.3608]
[1726587515837,0.00245453,61112.0,61105.0,0.3608]
[1726587516038,0.38894285,61112.0,61105.0,0.3608]
[1726587516837,0.38648832,61111.0,61104.0,0.3608]
[1726587517139,0.38648832,61111.0,61105.0,0.001]
[1726587517441,0.46829232,61106.0,61105.0,0.001]
[1726587517633,0.38648832,61106.0,61105.0,0.001]
[1726587517944,0.46933233,61106.0,61105.0,0.001]
[1726587518138,0.081807,61104.0,61103.0,0.00245465]
[1726587518338,1.02728832,61104.0,61092.0,0.00245466]
[1726587518530,0.74830932,61093.0,61092.0,0.00245466]
[1726587519038,0.74934933,61093.0,61092.0,0.01749493]
[1726587519238,0.74934933,61093.0,61092.0,0.00245466]
[1726587519639,0.46934933,61093.0,61092.0,0.00245466]
[1726587520855,0.74934933,61093.0,61081.0,0.00245546]
[1726587521057,0.38648832,61082.0,61081.0,0.00245546]
[1726587521451,0.38752833,61082.0,61081.0,0.00245546]
[1726587522047,0.38752833,61082.0,61081.0,0.01771854]
[1726587522257,0.38752833,61082.0,61081.0,0.00245546]
[1726587523660,0.38852833,61082.0,61081.0,0.00245546]
[1726587525562,0.001,61082.0,61081.0,0.00245546]
[1726587526550,0.001,61082.0,61081.0,1.53625346]
[1726587526851,0.00245563,61086.0,61085.0,0.081832]
[1726587527357,0.00245563,61086.0,61085.0,1.042632]
[1726587528159,0.00245563,61086.0,61085.0,0.45830842]
[1726587529855,0.00245563,61086.0,61085.0,0.46230842]
[1726587530663,0.00245563,61086.0,61085.0,0.46130842]
[1726587531458,0.00245563,61086.0,61085.0,0.46030842]
[1726587532557,0.38894395,61086.0,61085.0,0.01767642]
[1726587532750,0.38648832,61086.0,61085.0,0.01767642]
[1726587533154,0.38648832,61086.0,61085.0,0.01567642]
[1726587533466,0.38648832,61086.0,61081.0,0.00245546]
[1726587533764,0.38648832,61084.0,61081.0,0.00245546]
[1726587533955,0.38648832,61082.0,61081.0,0.01797415]
[1726587534260,0.43671374,61082.0,61081.0,0.00245546]
[1726587534967,0.43671317,61082.0,61081.0,0.00245546]
[1726587535364,0.43671317,61082.0,61070.0,0.00245596]
[1726587535365,0.081838,61081.0,61070.0,0.00245596]
[1726587535667,0.38648832,61075.0,61070.0,0.28]
[1726587535854,0.38648832,61076.0,61070.0,0.28]
[1726587536562,0.38648832,61076.0,61075.0,0.28]
[1726587536867,0.38648832,61076.0,61071.0,0.3608]
[1726587537257,0.38648832,61076.0,61075.0,0.28]
[1726587537462,0.38648832,61076.0,61071.0,0.3608]
[1726587537866,0.38648832,61076.0,61071.0,0.37602627]
[1726587538065,0.3608,61081.0,61071.0,0.37602627]
[1726587538265,0.43671877,61080.0,61071.0,0.37602627]
[1726587538466,0.05023145,61079.0,61071.0,0.37602627]
[1726587538665,0.05023148,61078.0,61071.0,0.37602627]
[1726587538868,0.38648832,61079.0,61071.0,0.37602627]
[1726587539171,0.38648832,61076.0,61071.0,0.37602627]
[1726587539471,0.38648832,61076.0,61075.0,0.003]
[1726587540162,0.38648832,61076.0,61071.0,0.37602627]
[1726587540370,0.38648832,61075.0,61071.0,0.38402627]
[1726587540556,0.38648832,61072.0,61071.0,0.02322627]
[1726587540757,0.46833832,61072.0,61071.0,0.02322627]
[1726587540955,0.43776739,61072.0,61071.0,0.01522627]
[1726587541179,0.43776739,61072.0,61070.0,0.28]
[1726587541362,0.43672738,61071.0,61070.0,0.28]
[1726587541862,0.43776739,61071.0,61070.0,0.29551728]
[1726587542569,0.43672738,61071.0,61070.0,0.29551728]
[1726587542770,0.43776739,61071.0,61070.0,0.01551728]
[1726587542971,0.43776739,61071.0,61062.0,0.3608]
[1726587543168,0.38648832,61069.0,61064.0,0.28]
[1726587543372,0.05023566,61068.0,61064.0,0.28]
[1726587543672,0.38648832,61069.0,61064.0,0.28]
[1726587543860,0.38648832,61068.0,61064.0,0.28]
[1726587544061,0.38648832,61068.0,61065.0,0.3608]
[1726587544268,0.38648832,61068.0,61064.0,0.28]
[1726587544873,0.38648832,61068.0,61065.0,0.3608]
[1726587546066,0.3608,61076.0,61065.0,0.3608]
[1726587546260,0.3608,61076.0,61075.0,0.28]
[1726587546261,0.38648832,61076.0,61075.0,0.28]
[1726587546465,0.43671678,61076.0,61075.0,0.28]
[1726587546771,0.43671678,61076.0,61075.0,0.3608]
[1726587546772,0.43671539,61076.0,61075.0,0.3608]
[1726587547271,0.43671539,61076.0,61075.0,0.37629582]
[1726587547674,0.05022707,61076.0,61075.0,0.65629582]
[1726587547861,0.17945178,61082.0,61077.0,0.081843]
[1726587548066,0.38648832,61081.0,61078.0,0.081841]
[1726587548267,0.38648832,61081.0,61080.0,0.442639]
[1726587548475,0.38648832,61081.0,61080.0,0.722639]
[1726587549276,0.38648832,61081.0,61080.0,0.361839]
[1726587549569,0.38648832,61081.0,61080.0,0.081839]
[1726587549778,0.38648832,61081.0,61076.0,0.442644]
[1726587549974,0.38648832,61080.0,61077.0,0.081842]
[1726587550277,0.38648832,61080.0,61078.0,0.081841]
[1726587550861,0.38648832,61080.0,61079.0,0.08184]
[1726587551072,0.35769781,61080.0,61079.0,0.08184]
[1726587551367,0.3608,61098.0,61079.0,1.2408]
[1726587551571,0.28,61104.0,61075.0,0.01549582]
[1726587551572,0.00104001,61097.0,61094.0,0.3608]
[1726587551877,0.3566578,61097.0,61096.0,0.361817]
[1726587552176,0.53612374,61097.0,61096.0,0.361817]
[1726587552367,0.53612374,61097.0,61094.0,0.3608]
[1726587552568,0.3566578,61097.0,61094.0,0.37643194]
[1726587552875,0.05021351,61096.0,61094.0,0.45825094]
[1726587553070,0.05021351,61095.0,61094.0,0.45825094]
[1726587553268,0.18192103,61103.0,61094.0,0.97643194]
[1726587553578,0.41778551,61103.0,61102.0,0.3608]
[1726587553884,0.41778551,61103.0,61102.0,0.442609]
[1726587553885,0.00245509,61103.0,61102.0,0.442609]
[1726587554377,0.001,61103.0,61102.0,0.442609]
[1726587555278,0.17938229,61107.0,61106.0,0.081804]
[1726587555476,0.17938229,61110.0,61106.0,0.081804]
[1726587555776,0.3566578,61108.0,61107.0,0.081803]
[1726587555971,0.4916546,61115.0,61107.0,0.081803]
[1726587555972,0.17938229,61114.0,61109.0,0.0818]
[1726587556171,0.49269461,61115.0,61112.0,0.3608]
[1726587556571,0.3566578,61113.0,61112.0,0.3608]
[1726587557064,0.3566578,61113.0,61108.0,0.00245459]
[1726587557065,0.35769781,61113.0,61108.0,0.00245459]
[1726587557277,0.3566578,61109.0,61108.0,0.00245459]
[1726587557874,0.3566578,61109.0,61102.0,0.01565971]
[1726587557875,0.28,61106.0,61102.0,0.01565971]
[1726587558078,0.28,61106.0,61097.0,0.3608]
[1726587558079,0.3566578,61103.0,61085.0,0.3608]
[1726587558374,0.6366578,61099.0,61098.0,0.0180729]
[1726587558575,0.081815,61098.0,61097.0,0.3608]
[1726587558778,1.59003337,61098.0,61090.0,0.3608]
[1726587558970,0.28787557,61097.0,61090.0,0.3608]
[1726587559275,0.4384818,61091.0,61086.0,0.00245497]
[1726587559482,0.3566578,61087.0,61086.0,0.00245497]
[1726587559669,0.40686955,61087.0,61086.0,0.00245497]
[1726587559871,0.40790956,61087.0,61086.0,0.00245497]
[1726587561679,0.05021175,61087.0,61086.0,0.00245497]
[1726587561987,0.4692,61092.0,61087.0,0.081828]
[1726587562180,0.3566578,61088.0,61087.0,0.44263]
[1726587562374,0.3566578,61088.0,61087.0,0.72263]
[1726587562679,0.3566578,61088.0,61087.0,0.3608]
[1726587562870,0.40791386,61088.0,61087.0,0.3608]
[1726587563271,0.40791386,61088.0,61087.0,0.3658]
[1726587563477,0.35769781,61088.0,61087.0,0.3658]
[1726587564074,0.35769781,61088.0,61087.0,0.3618]
[1726587564777,0.40791833,61088.0,61087.0,0.001]
[1726587564981,0.40791833,61088.0,61071.0,0.28]
[1726587564982,0.081844,61076.0,61068.0,0.3608]
[1726587565184,0.3566578,61069.0,61068.0,0.44511127]
[1726587565370,0.178988,61077.0,61068.0,0.37866563]
[1726587565678,0.00245601,61081.0,61080.0,0.081839]
[1726587565679,0.35911381,61081.0,61080.0,0.081839]
[1726587565887,0.35911381,61081.0,61080.0,0.361839]
[1726587566085,0.35911381,61081.0,61080.0,0.28]
[1726587566984,0.41038109,61081.0,61079.0,0.3608]
[1726587567283,0.41038109,61081.0,61068.0,0.01645627]
[1726587567284,0.3566578,61075.0,61071.0,0.3608]
[1726587567482,0.05022727,61074.0,61071.0,0.3608]
[1726587567787,0.3566578,61072.0,61071.0,0.3608]
[1726587567985,0.40688507,61072.0,61071.0,0.3608]
[1726587568385,0.40688507,61072.0,61071.0,0.442651]
[1726587568580,0.3566578,61072.0,61071.0,0.442651]
[1726587568882,0.3566578,61072.0,61071.0,0.3608]
[1726587569289,0.4676,61078.0,61071.0,0.3608]
[1726587569498,0.3566578,61073.0,61071.0,0.3608]
[1726587569789,0.46864001,61078.0,61074.0,0.28]
[1726587570087,0.3566578,61072.0,61071.0,0.3608]
[1726587570387,0.3566578,61072.0,61071.0,0.442651]
[1726587570588,0.3566578,61072.0,61071.0,0.3608]
[1726587571794,0.002,61078.0,61071.0,0.442651]
[1726587572085,0.00245584,61086.0,61077.0,0.6408]
[1726587572281,0.00349585,61086.0,61085.0,0.3608]
[1726587572688,0.36015365,61086.0,61085.0,0.3608]
[1726587572878,0.41037553,61086.0,61085.0,0.3608]
[1726587573479,0.41137553,61086.0,61085.0,0.3608]
[1726587573684,0.36115365,61086.0,61085.0,0.3608]
[1726587573885,0.36115365,61086.0,61085.0,0.45766936]
[1726587574385,0.36115365,61086.0,61085.0,0.38283736]
[1726587574386,0.36015365,61086.0,61085.0,0.38283736]
[1726587575993,0.36015365,61086.0,61085.0,0.37583736]
[1726587576186,0.36015365,61086.0,61085.0,0.45766936]
[1726587576688,0.00245584,61086.0,61085.0,0.45766936]
[1726587577480,0.36015365,61086.0,61085.0,0.37583736]
[1726587577684,0.36015365,61086.0,61085.0,0.37783736]
[1726587578489,0.36015365,61086.0,61085.0,0.45966936]
[1726587578689,0.36015365,61086.0,61085.0,0.37783736]
[1726587579092,0.36015365,61086.0,61085.0,0.45966936]
[1726587579285,0.35911364,61086.0,61085.0,0.45766936]
[1726587579994,0.35911364,61086.0,61085.0,0.37583736]
[1726587580294,0.36015365,61086.0,61085.0,0.01603736]
[1726587580683,0.36015365,61086.0,61085.0,0.09786936]
[1726587581484,0.36015365,61086.0,61085.0,0.01603736]
[1726587581690,0.36015365,61086.0,61085.0,0.09786936]
[1726587582195,0.36015365,61086.0,61085.0,0.01503736]
[1726587582386,0.36015365,61086.0,61084.0,0.3608]
[1726587582700,0.3566578,61085.0,61084.0,0.3608]
[1726587583088,0.35769781,61085.0,61084.0,0.37557636]
[1726587583394,0.35769781,61085.0,61084.0,0.01477636]
[1726587583594,0.40791933,61085.0,61081.0,0.00245545]
[1726587583893,0.3566578,61082.0,61081.0,0.00245545]
[1726587584088,0.40688206,61082.0,61081.0,0.00245545]
[1726587585095,0.40688206,61082.0,61081.0,0.01721993]
[1726587585397,0.40792207,61082.0,61081.0,0.00245545]
[1726587586288,0.40792173,61082.0,61081.0,0.00245545]
[1726587587398,0.37937009,61082.0,61081.0,0.08429345]
[1726587587984,0.36627126,61082.0,61081.0,0.08429345]
[1726587588886,0.36627126,61082.0,61081.0,0.00245545]
[1726587589193,0.36627126,61082.0,61081.0,0.08829345]
[1726587589801,0.36627126,61082.0,61081.0,0.08429345]
[1726587590105,0.36627126,61082.0,61081.0,0.08529345]
[1726587590397,0.31604734,61082.0,61081.0,0.08529345]
[1726587590590,0.36626889,61082.0,61081.0,0.08429345]
[1726587592183,0.3673089,61082.0,61081.0,0.08429345]
[1726587593499,0.3673089,61082.0,61081.0,0.00245545]
[1726587594092,0.31604734,61079.0,61077.0,0.3608]
[1726587594297,0.36626889,61078.0,61077.0,0.3608]
[1726587594498,0.54603253,61078.0,61077.0,0.3608]
[1726587594696,0.3673089,61078.0,61077.0,0.3608]
[1726587594892,0.3673089,61078.0,61077.0,0.09657376]
[1726587595990,0.3673089,61078.0,61077.0,0.01473076]
[1726587596196,0.3673089,61078.0,61076.0,0.3608]
[1726587596197,0.31708735,61078.0,61076.0,0.3608]
[1726587596402,0.00104001,61078.0,61077.0,0.006]
[1726587596995,0.31708735,61078.0,61076.0,0.37551591]
[1726587597300,0.31604734,61077.0,61076.0,0.35841591]
[1726587597699,0.31708735,61077.0,61076.0,0.35841591]
[1726587597898,0.31708735,61077.0,61076.0,0.44025991]
[1726587598097,0.36731239,61077.0,61076.0,0.35841591]
[1726587598496,0.36731095,61077.0,61076.0,0.35841591]
[1726587600193,0.36731611,61077.0,61076.0,0.35841591]
[1726587600588,0.31708735,61077.0,61076.0,0.35841591]
[1726587601098,0.36731279,61077.0,61076.0,0.35841591]
[1726587601303,0.05022544,61077.0,61076.0,0.44025991]
[1726587601599,0.05868944,61088.0,61083.0,0.081834]
[1726587601799,0.05868944,61088.0,61076.0,0.35841591]
[1726587601800,0.31604734,61079.0,61078.0,0.081842]